fUSD/lending_fUSD_20260408
["ID","MTS","AMOUNT","RATE_DAILY","PERIOD"]
[420027479,1775623857368,-151.0,0.00026,2]
[420027480,1775623857378,-151.0,0.00026,2]
[420027481,1775623857389,-194.131314,0.00026,2]
[420027482,1775623857399,-194.131314,0.00026,2]
[420027483,1775623857408,-194.131314,0.00026,2]
[420027484,1775623857418,-151.0,0.00026,2]
[420027485,1775623857427,-194.131304,0.00026,2]
[420027486,1775623857438,-151.0,0.00026,2]
[420027487,1775623857448,-1364.0,0.00026,2]
[420027488,1775623857458,-333.804281,0.00026,2]
[420027489,1775623857469,-333.804281,0.00026,2]
[420027490,1775623857479,-151.0,0.00026,2]
[420027491,1775623857489,-333.804281,0.00026,2]
[420027492,1775623857498,-151.0,0.00026,2]
[420027493,1775623857507,-333.804279,0.00026,2]
[420027494,1775623857517,-151.0,0.00026,2]
[420027495,1775623857527,-151.0,0.00026,2]
[420027496,1775623857536,-151.0,0.00026,2]
[420027497,1775623857546,-151.0,0.00026,2]
[420027498,1775623857556,-151.0,0.00026,2]
[420027499,1775623857566,-151.0,0.00026,2]
[420027500,1775623857576,-4299.60406206,0.00026,10]
[420027501,1775623857586,-2000.0,0.0002603,2]
[420027502,1775623857595,-10000.0,0.0002603,2]
[420027503,1775623857605,-5195.35652,0.0002603,2]
[420027504,1775623857615,-5000.0,0.0002603,2]
[420027505,1775623857624,-5000.0,0.0002603,2]
[420027506,1775623857633,-5000.0,0.0002603,2]
[420027507,1775623857643,-1000000.0,0.000263,2]
[420027508,1775623857652,-151.0,0.000263,2]
[420027509,1775623857662,-151.0,0.000263,2]
[420027510,1775623857672,-79364.77,0.000264,7]
[420027511,1775623857682,-1000000.0,0.000265,2]
[420027512,1775623857692,-151.0,0.000265,2]
[420027513,1775623857701,-151.0,0.000265,2]
[420027514,1775623857712,-151.0,0.000265,2]
[420027515,1775623857722,-151.0,0.000265,2]
[420027516,1775623857732,-151.0,0.000265,2]
[420027517,1775623857743,-505.70956127,0.00026523,2]
[420027518,1775623857754,-1000.0,0.00026556,2]
[420027519,1775623857764,-745.74743216,0.00026578,2]
[420027520,1775623857774,-1100.0,0.00026578,7]
[420027521,1775623857784,-2800.0,0.00026578,7]
[420027522,1775623857794,-292.3100366,0.00026667,7]
[420027523,1775623857804,-504.19295328,0.000267,2]
[420027524,1775623857814,-1000000.0,0.000268,2]
[420027525,1775623857824,-644.9152,0.000268,2]
[420027526,1775623857834,-200.0,0.000268,9]
[420027527,1775623857844,-1000.0,0.00026842,2]
[420027528,1775623857854,-1050.0,0.000269,9]
[420027529,1775623857864,-2110.0,0.000269,2]
[420027530,1775623857875,-155080.33982026,0.00027,2]
[420027531,1775623857904,-336.7928466,0.00027,2]
[420027532,1775623857916,-1407.52319047,0.00027,2]
[420027533,1775623857945,-2471.0,0.00016598,2]
[420027534,1775623857957,-376.86151928,0.00023,2]
[420027535,1775623857970,-1105.13848072,0.00023,2]
[420027536,1775623857979,-705.77613044,0.00027,2]
[420027537,1775623857994,-2075.70576896,0.00027,2]
[420027538,1775623859068,-2471.0,0.00019598,2]
[420027539,1775623859079,-2471.0,0.00022598,2]
[420027540,1775623859089,-1482.0,0.00024,2]
[420027541,1775623859099,-1093.56499901,0.00024008,2]
[420027542,1775623859109,-151.0,0.000245,2]
[420027543,1775623859119,-151.0,0.000251,2]
[420027544,1775623859129,-151.0,0.000255,2]
[420027545,1775623859139,-2471.0,0.00025598,2]
[420027546,1775623859149,-151.0,0.00026,2]
[420027547,1775623859160,-151.0,0.000265,2]
[420027548,1775623859169,-395150.00473785,0.00027,2]
[420027549,1775623859181,-19728.25207024,0.00027,2]
[420027550,1775623859340,-230.0,0.00010735,2]
[420027551,1775623859351,-151.0,0.0001157,2]
[420027552,1775623859360,-1098.73090209,0.00015614,2]
[420027553,1775623859370,-189.823493,0.000245,2]
[420027554,1775623859380,-1482.0,0.00025,2]
[420027555,1775623859390,-1482.0,0.00026,2]
[420027556,1775623859400,-8478.72391077,0.00027,2]
[420027557,1775623859412,-101615.29870157,0.00027,2]
[420027558,1775623859444,-1433.72611807,0.00027,2]
[420027559,1775623859455,-481.3395008,0.00027,2]
[420027560,1775623859467,-511.5,0.00027,2]
[420027561,1775623860357,-1862.32572115,0.00027,2]
[420027562,1775623860369,-568.01877109,0.00027,2]
[420027563,1775623860394,-1020.1816701,0.00015614,2]
[420027564,1775623860404,-2424.03271421,0.00027,2]
[420027565,1775623933649,5296.61833702,0.00010503,2]
[420027566,1775623933673,10000.01,0.00010503,2]
[420027567,1775623933698,7200.82296298,0.00010503,2]
[420027568,1775623969964,1000.0,0.00010503,2]
[420027569,1775623988488,1799.18703702,0.00010543,2]
[420027570,1775623988513,700.81296298,0.00010543,2]
[420027571,1775624074949,9299.19703702,0.00010503,2]
[420027572,1775624074971,10000.01,0.00010503,2]
[420027573,1775624074994,2392.62906298,0.00010503,2]
[420027574,1775624082255,-250.0,0.00010576,2]
[420027575,1775624195353,1924.47,9.643e-05,2]
[420027576,1775624204629,166.0,0.000161,120]
[420027577,1775624210660,166.0,0.00016,120]
[420027578,1775624361103,266.0,0.000161,120]
[420027579,1775624362789,157.0,6.805e-05,2]
[420027580,1775624363043,152.0,6.805e-05,2]
[420027581,1775624363295,152.0,6.805e-05,2]
[420027582,1775624363925,152.0,6.805e-05,2]
[420027583,1775624363978,152.0,6.805e-05,2]
[420027584,1775624364043,152.0,6.805e-05,2]
[420027585,1775624364295,152.0,6.805e-05,2]
[420027586,1775624364562,152.0,6.805e-05,2]
[420027587,1775624364812,152.0,6.805e-05,2]
[420027588,1775624365068,152.0,6.805e-05,2]
[420027589,1775624365323,152.0,6.805e-05,2]
[420027590,1775624366738,152.0,6.805e-05,2]
[420027591,1775624366785,152.0,6.805e-05,2]
[420027592,1775624366861,152.0,6.805e-05,2]
[420027593,1775624366903,152.0,6.805e-05,2]
[420027594,1775624366941,152.0,6.805e-05,2]
[420027595,1775624367087,152.0,6.805e-05,2]
[420027596,1775624367343,152.0,6.805e-05,2]
[420027597,1775624367590,152.0,6.805e-05,2]
[420027598,1775624368571,167.0,6.805e-05,2]
[420027599,1775624368828,163.0,6.805e-05,2]
[420027600,1775624369493,163.0,6.805e-05,2]
[420027601,1775624369537,3790.28,5.597e-05,2]
[420027602,1775624369580,399.26,5.891e-05,2]
[420027603,1775624369604,3391.02,5.891e-05,2]
[420027604,1775624369636,163.0,6.805e-05,2]
[420027605,1775624369673,3790.28,6.186e-05,2]
[420027606,1775624369783,2655.71,6.48e-05,2]
[420027607,1775624369806,1134.57,6.48e-05,2]
[420027608,1775624369839,163.0,6.805e-05,2]
[420027609,1775624369954,3790.28,6.775e-05,2]
[420027610,1775624370036,163.0,6.805e-05,2]
[420027611,1775624370152,3790.28,7.069e-05,2]
[420027612,1775624370297,163.0,6.805e-05,2]
[420027613,1775624370556,163.0,6.805e-05,2]
[420027614,1775624370586,632.88,7.364e-05,2]
[420027615,1775624370611,3157.4,7.364e-05,2]
[420027616,1775624370749,3790.28,7.658e-05,2]
[420027617,1775624370947,3052.33,7.953e-05,2]
[420027618,1775624370971,737.95,7.953e-05,2]
[420027619,1775624371137,3790.28,8.248e-05,2]
[420027620,1775624371439,3790.28,8.542e-05,2]
[420027621,1775624371629,1681.5,8.837e-05,2]
[420027622,1775624371654,2108.78,8.837e-05,2]
[420027623,1775624371827,3790.28,9.131e-05,2]
[420027624,1775624372019,3790.28,9.426e-05,2]
[420027625,1775624372217,310.67,9.72e-05,2]
[420027626,1775624372243,3479.61,9.72e-05,2]
[420027627,1775624372414,3790.28,0.00010015,2]
[420027628,1775624372604,2730.12,0.00010309,2]
[420027629,1775624372628,1060.16,0.00010309,2]
[420027630,1775624383633,-3790.28,0.00010604,2]
[420027631,1775624391985,2419.45,0.0001055,2]
[420027632,1775624392009,5880.54,0.0001055,2]
[420027633,1775624438178,756.7,0.000161,120]
[420027634,1775624443724,157.98,9.639e-05,2]
[420027636,1775624696463,-676.11170152,0.00010604,2]
[420027637,1775624745820,-5000.0,0.00010664,2]
[420027638,1775624746069,-250.0,0.00010724,2]
[420027639,1775624746100,-1200.0,0.00010797,2]
[420027640,1775624746129,-2750.67272774,0.00010798,2]
[420027641,1775624746276,-1598.66454452,0.00010798,2]
[420027642,1775624746306,-157.98,0.00010844,2]
[420027643,1775624746336,-300.0,0.00010896,2]
[420027644,1775624746367,-2096.44091096,0.00010898,2]
[420027645,1775624748643,-1693.83908904,0.00010898,2]
[420027646,1775624748675,-150.0,0.00010898,2]
[420027647,1775624748705,-787.17,0.000109,2]
[420027648,1775624748736,-152.26,0.00010922,2]
[420027649,1775624748767,-266.47,0.00010931,2]
[420027650,1775624748796,-999.99,0.00010931,2]
[420027651,1775624748825,-689.44182192,0.00010931,2]
[420027652,1775624751773,-521.66817808,0.00010931,2]
[420027653,1775624751803,-500.0,0.00010939,2]
[420027654,1775624751832,-299.99,0.00010939,2]
[420027655,1775624751862,-342.6,0.00010941,2]
[420027656,1775624751890,-300.0,0.00011037,2]
[420027657,1775624751920,-300.0,0.00011038,7]
[420027658,1775624751948,-285.50676789,0.00011038,2]
[420027659,1775624751977,-150.99,0.00011038,2]
[420027660,1775624752477,-0.02,0.00011038,2]
[420027661,1775624752629,-0.04,0.00011038,2]
[420027662,1775624754851,-309.0,0.00010931,2]
[420027663,1775624755166,-0.08,0.00011038,2]
[420027664,1775624755212,-0.16,0.00011038,2]
[420027665,1775624757870,-0.32,0.00011038,2]
[420027666,1775624757996,-0.64,0.00011038,2]
[420027667,1775624758134,-1.28,0.00011038,2]
[420027669,1775624960136,-300.0,0.00011037,2]
[420027670,1775624960160,-150.0,0.00011037,2]
[420027671,1775624960184,-300.0,0.00011037,2]
[420027672,1775624960207,-195.0,0.00011037,2]
[420027673,1775624960231,-600.0,0.00011037,2]
[420027674,1775624960254,-250.0,0.00011038,2]
[420027675,1775624960276,-2640.95990967,0.00011038,2]
[420027676,1775624968645,-2643.51990967,0.00011038,2]
[420027677,1775624968699,-4712.97018066,0.00011038,2]
[420027678,1775624968728,-150.99,0.00011038,2]
[420027679,1775624968781,-0.02,0.00011038,2]
[420027680,1775624968834,-0.04,0.00011038,2]
[420027681,1775624969996,-0.08,0.00011038,2]
[420027682,1775624970287,-0.16,0.00011038,2]
[420027683,1775624970418,-1888.22915864,0.00011038,2]
[420027684,1775624970454,-1888.54915864,0.00011038,2]
[420027685,1775624970487,-6222.91168272,0.00011038,2]
[420027686,1775624973204,-207.7185339,0.00011038,2]
[420027687,1775624973236,-857.53087384,0.00011038,2]
[420027688,1775624973266,-195.0,0.00011069,2]
[420027689,1775624973298,-195.0,0.00011069,2]
[420027690,1775624973329,-195.0,0.00011069,2]
[420027691,1775624973358,-3030.22118452,0.00011122,2]
[420027692,1775624973472,-639.06881548,0.00011122,2]
[420027693,1775624974154,228.75053507,0.00011122,2]
[420027694,1775624974544,151.0,0.00011122,2]
[420027695,1775624975673,196.07188721,0.00011122,2]
[420027696,1775624976505,168.06161761,0.00011122,2]
[420027697,1775624977293,151.0,0.00011122,2]
[420027698,1775624994373,394.15138645,7.888e-05,2]
[420027699,1775625000063,314.0,0.00011193,2]
[420027701,1775625012965,9686.01,0.000107,2]
[420027702,1775625012990,10000.01,0.000107,2]
[420027703,1775625013014,10000.01,0.000107,2]
[420027704,1775625013480,10000.01,0.000107,2]
[420027705,1775625013508,10000.01,0.000107,2]
[420027706,1775625013536,10000.01,0.000107,2]
[420027707,1775625013561,10000.01,0.000107,2]
[420027708,1775625013588,10000.01,0.000107,2]
[420027709,1775625013613,10000.01,0.000107,2]
[420027732,1775625032086,-348.35422885,0.0001069,2]
[420027733,1775625032115,-348.35422885,0.0001069,2]
[420027734,1775625032145,-197.51949262,0.00010699,2]
[420027735,1775625032178,-500.0,0.00010699,2]
[420027736,1775625032215,-442.3810366,0.00010699,2]
[420027737,1775625032251,-405.90239045,0.00010699,2]
[420027738,1775625032283,-500.0,0.00010699,2]
[420027739,1775625032314,-514.15985794,0.00010699,2]
[420027757,1775625032563,-500.0,0.00010699,2]
[420027762,1775625032595,-500.0,0.00010699,2]
[420027766,1775625032627,-500.0,0.00010699,2]
[420027770,1775625032660,-397.60214847,0.00010699,2]
[420027778,1775625032731,-500.0,0.00010699,2]
[420027780,1775625032741,-30.12669042,0.000107,2]
[420027783,1775625032754,-8866.87057018,0.000107,2]
[420027785,1775625032765,-252.80804943,0.000107,2]
[420027787,1775625032777,-753.08345875,0.000107,2]
[420027789,1775625032790,-295736.76569364,0.000107,2]
[420027791,1775625032801,-126437.14432522,0.000107,2]
[420027794,1775625032814,-95740.78827037,0.000107,2]
[420027796,1775625032826,-494.97495455,0.000107,2]
[420027798,1775625032838,-351.95748645,0.000107,2]
[420027834,1775625033174,-2245.88125224,0.000107,2]
[420027836,1775625035632,-500.0,0.00010699,2]
[420027837,1775625036767,-7448.2349637,0.000107,2]
[420027838,1775625036794,-10000.01,0.000107,2]
[420027839,1775625036812,-10000.01,0.000107,2]
[420027840,1775625036827,-10000.01,0.000107,2]
[420027841,1775625036842,-10000.01,0.000107,2]
[420027842,1775625036862,-10000.01,0.000107,2]
[420027843,1775625037811,-1393.9530976,0.000107,2]
[420027844,1775625038145,-3049657.11895544,0.000107,2]
[420027845,1775625038155,-3790.28,0.00011193,2]
[420027846,1775625038165,-5000.0,0.00011298,2]
[420027847,1775625038175,-195.0,0.00011298,2]
[420027848,1775625038185,-300.0,0.00011402,2]
[420027849,1775625038195,-1200.0,0.00011402,2]
[420027850,1775625038205,-8608.12,0.00011403,2]
[420027851,1775625038214,-195.0,0.00011461,2]
[420027852,1775625038224,-195.0,0.00011461,2]
[420027853,1775625038234,-5451.76,0.00011507,2]
[420027854,1775625038243,-152.7979958,0.00011535,2]
[420027855,1775625038253,-500.0,0.00011664,2]
[420027856,1775625038263,-202.0,0.00011756,2]
[420027857,1775625038273,-150.0,0.000118,2]
[420027858,1775625038283,-151.0,0.00011801,2]
[420027859,1775625038293,-151.0,0.00011801,2]
[420027861,1775625038302,-151.0,0.00011801,2]
[420027862,1775625038312,-151.0,0.00011801,2]
[420027863,1775625038322,-151.0,0.00011801,2]
[420027864,1775625038331,-151.0,0.00011801,2]
[420027865,1775625038340,-151.0,0.00011801,2]
[420027866,1775625038351,-151.0,0.00011801,2]
[420027867,1775625038360,-151.0,0.00011801,2]
[420027868,1775625038370,-200.0,0.00011801,2]
[420027869,1775625038380,-151.0,0.00011801,2]
[420027870,1775625038390,-151.0,0.00011801,2]
[420027871,1775625038399,-151.0,0.00011801,2]
[420027872,1775625038409,-151.0,0.00011801,2]
[420027873,1775625038418,-151.0,0.00011801,2]
[420027874,1775625038428,-152.45672918,0.00011801,2]
[420027875,1775625038438,-151.0,0.00011801,2]
[420027876,1775625038447,-1199.20597015,0.00011801,2]
[420027877,1775625038457,-501.50073946,0.00011801,2]
[420027878,1775625038467,-151.0,0.00011801,2]
[420027879,1775625038477,-151.0,0.00011801,2]
[420027880,1775625038486,-151.0,0.00011801,2]
[420027881,1775625038496,-151.0,0.00011801,2]
[420027882,1775625038505,-151.0,0.00011801,2]
[420027883,1775625038515,-151.0,0.00011801,2]
[420027884,1775625038526,-151.0,0.00011801,2]
[420027885,1775625038536,-151.0,0.00011801,2]
[420027886,1775625038547,-151.0,0.00011801,2]
[420027887,1775625038557,-155.45941456,0.00011801,2]
[420027888,1775625038566,-500.0,0.00011807,2]
[420027889,1775625038576,-555.0,0.00011808,2]
[420027890,1775625038586,-333.0,0.00011808,2]
[420027891,1775625038596,-555.0,0.00011808,2]
[420027892,1775625038606,-444.0,0.00011808,2]
[420027893,1775625038616,-333.0,0.00011808,2]
[420027894,1775625038625,-155.0,0.00011814,2]
[420027895,1775625038634,-444.0,0.00011814,2]
[420027896,1775625038644,-196.91,0.00011817,2]
[420027897,1775625038653,-500.0,0.00011873,2]
[420027898,1775625038663,-361.44642401,0.00011873,2]
[420027899,1775625038673,-501.16240007,0.00011873,2]
[420027900,1775625038682,-312.0,0.00011876,2]
[420027901,1775625038691,-1364.0,0.00011899,2]
[420027902,1775625038702,-1802.0,0.00011907,2]
[420027903,1775625038717,-151.0,0.00011922,2]
[420027904,1775625038726,-1650.0,0.00011931,2]
[420027905,1775625038736,-1151.0,0.00011954,2]
[420027906,1775625038746,-192.0,0.00011978,2]
[420027907,1775625038756,-157.98,0.00012049,2]
[420027908,1775625038766,-152.18,0.00012049,2]
[420027909,1775625038776,-500.0,0.00012049,2]
[420027910,1775625038785,-1852.42,0.00012049,2]
[420027911,1775625038795,-500.0,0.00012081,2]
[420027912,1775625038805,-255.0,0.00012086,2]
[420027913,1775625038815,-420.0,0.00012128,2]
[420027914,1775625038824,-250.0,0.00012141,2]
[420027915,1775625038834,-376.60353807,0.00012141,2]
[420027916,1775625038843,-600.0,0.00012141,2]
[420027917,1775625038853,-195.0,0.00012141,2]
[420027918,1775625039442,-2632.34465391,0.00012141,2]
[420027919,1775625039452,-300.0,0.00012141,2]
[420027920,1775625039462,-600.0,0.00012141,2]
[420027921,1775625039472,-193.0,0.00012141,2]
[420027922,1775625039481,-250.0,0.00012141,2]
[420027923,1775625039491,-269.91,0.00012229,2]
[420027924,1775625039500,-10654.1683077,0.00012248,2]
[420027925,1775625039510,-8436.02256686,0.00012249,2]
[420027926,1775625039519,-254.8827393,0.00012249,2]
[420027927,1775625039529,-6586.93748146,0.00012249,2]
[420027928,1775625039540,-6127.51341403,0.00012249,2]
[420027929,1775625039550,-22606.14932116,0.00012273,2]
[420027930,1775625039560,-195.0,0.00012312,2]
[420027931,1775625039569,-193.41865489,0.00012312,2]
[420027932,1775625039578,-5000.0,0.00012312,2]
[420027933,1775625039588,-250.0,0.00012312,2]
[420027934,1775625039597,-348.35422885,0.00012338,2]
[420027935,1775625039607,-371.0,0.00012344,2]
[420027936,1775625039617,-151.0,0.00012345,2]
[420027937,1775625039627,-1096.24048485,0.00012347,3]
[420027938,1775625039637,-2500000.0,0.00012348,2]
[420027939,1775625039648,-201.60184993,0.00012349,2]
[420027940,1775625039657,-1243.57659104,0.00012349,2]
[420027941,1775625039667,-503.45185304,0.00012355,2]
[420027942,1775625039677,-500.7116693,0.00012373,2]
[420027943,1775625039686,-500.0,0.00012373,2]
[420027944,1775625039696,-576.75688538,0.00012373,2]
[420027945,1775625039706,-500.0,0.00012373,2]
[420027946,1775625039715,-500.0,0.00012373,2]
[420027947,1775625039725,-500.0,0.00012373,2]
[420027948,1775625039735,-500.0,0.00012373,2]
[420027949,1775625039744,-500.0,0.00012373,2]
[420027950,1775625039754,-500.0,0.00012373,2]
[420027951,1775625039763,-246.25716228,0.00012373,2]
[420027952,1775625039774,-500.0,0.00012373,2]
[420027953,1775625039784,-170.15582469,0.00012373,2]
[420027954,1775625039794,-200.08326476,0.00012373,2]
[420027955,1775625039803,-164.45663059,0.00012373,2]
[420027956,1775625039813,-281.88719221,0.00012373,2]
[420027957,1775625039822,-500.0,0.00012373,2]
[420027958,1775625039832,-500.0,0.00012373,2]
[420027959,1775625039841,-500.0,0.00012373,2]
[420027960,1775625039851,-500.0,0.00012373,2]
[420027961,1775625039860,-500.22085293,0.00012373,2]
[420027962,1775625039870,-500.0,0.00012373,2]
[420027963,1775625039879,-891.89335958,0.00012421,2]
[420027964,1775625039888,-928.0,0.00012461,2]
[420027965,1775625039898,-159.53967218,0.00012491,2]
[420027966,1775625039908,-420.0,0.00012525,2]
[420027967,1775625039917,-1680.0,0.00012543,2]
[420027968,1775625039927,-8436.02256686,0.00012655,2]
[420027969,1775625039936,-6127.51341403,0.00012771,2]
[420027970,1775625039945,-755.8367304,0.00012897,2]
[420027971,1775625039956,-1000.87166627,0.00012921,2]
[420027972,1775625039965,-1000.0,0.00012921,2]
[420027973,1775625039975,-500.53661767,0.00012921,2]
[420027974,1775625039984,-502.49539828,0.00012921,2]
[420027975,1775625039994,-1000.54232895,0.00012921,2]
[420027976,1775625040003,-1000.0,0.00012921,2]
[420027977,1775625040012,-1000.0,0.00012921,2]
[420027978,1775625040022,-1000.0,0.00012921,2]
[420027980,1775625040032,-455.42271784,0.00012921,2]
[420027981,1775625040041,-1000.0,0.00012921,2]
[420027982,1775625040051,-501.51019132,0.00012921,2]
[420027983,1775625040061,-1000.0,0.00012921,2]
[420027984,1775625040071,-1000.0,0.00012921,2]
[420027985,1775625040080,-81454.46287592,0.00012999,2]
[420027986,1775625040089,-167.2418,0.00013,2]
[420027987,1775625040098,-250.0,0.00013,2]
[420027988,1775625040108,-3620.21391383,0.0001305,2]
[420027989,1775625040117,-8436.02256686,0.0001306,2]
[420027990,1775625040127,-507.0,0.000131,2]
[420027991,1775625040136,-22606.14932116,0.0001312,2]
[420027992,1775625040145,-191.51089606,0.00013215,2]
[420027993,1775625040155,-433.0,0.00013233,2]
[420027994,1775625040165,-157.98,0.00013253,2]
[420027995,1775625040175,-6127.51341403,0.00013292,2]
[420027996,1775625040185,-150.0,0.00013315,2]
[420027997,1775625040195,-150.0,0.00013315,2]
[420027998,1775625040214,-150.0,0.00013315,2]
[420027999,1775625040226,-150.0,0.00013315,2]
[420028000,1775625040237,-150.0,0.00013315,2]
[420028001,1775625040249,-150.0,0.00013315,2]
[420028002,1775625040259,-257.21753866,0.00013315,2]
[420028003,1775625040268,-235.51154759,0.00013315,2]
[420028004,1775625040278,-154.96470643,0.00013315,2]
[420028005,1775625040289,-150.0,0.00013315,2]
[420028006,1775625040299,-150.0,0.00013315,2]
[420028007,1775625040309,-150.0,0.00013315,2]
[420028008,1775625040319,-567.0,0.00013327,2]
[420028009,1775625040329,-3240.0,0.00013425,2]
[420028010,1775625040338,-8436.02256686,0.00013466,2]
[420028011,1775625040348,-1500.0,0.00013468,2]
[420028012,1775625040358,-1500.0,0.00013468,2]
[420028013,1775625040368,-1500.0,0.00013468,2]
[420028014,1775625040378,-1500.0,0.00013468,2]
[420028015,1775625040388,-1500.0,0.00013468,2]
[420028016,1775625040398,-1500.0,0.00013468,2]
[420028017,1775625040408,-150.0,0.00013479,2]
[420028018,1775625040418,-5293.08034556,0.000135,7]
[420028019,1775625040429,-1000.0,0.000135,2]
[420028020,1775625040439,-150.0,0.000135,2]
[420028021,1775625040450,-150.0,0.000135,2]
[420028022,1775625040459,-1003.43624439,0.00013599,2]
[420028023,1775625040469,-150.0,0.00013611,2]
[420028024,1775625040479,-150.0,0.00013611,2]
[420028025,1775625040489,-150.0,0.00013644,2]
[420028026,1775625040499,-150.0,0.00013685,2]
[420028027,1775625040509,-150.0,0.00013685,2]
[420028028,1775625040519,-150.0,0.00013685,2]
[420028029,1775625040529,-500.0,0.00013698,2]
[420028030,1775625040538,-500.0,0.00013698,2]
[420028031,1775625040547,-500.0,0.00013698,2]
[420028032,1775625040557,-500.0,0.00013698,2]
[420028033,1775625040567,-500.0,0.00013698,2]
[420028034,1775625040577,-500.0,0.00013698,2]
[420028035,1775625040586,-500.0,0.00013698,2]
[420028036,1775625040596,-500.0,0.00013698,2]
[420028037,1775625040605,-500.0,0.00013698,2]
[420028038,1775625040615,-500.0,0.00013698,2]
[420028039,1775625040626,-500.0,0.00013698,2]
[420028040,1775625040636,-500.0,0.00013698,2]
[420028041,1775625040647,-500.03954585,0.00013698,2]
[420028042,1775625040657,-500.0,0.00013698,2]
[420028043,1775625040667,-500.0,0.00013698,2]
[420028044,1775625040677,-500.0,0.00013698,2]
[420028045,1775625040687,-500.0,0.00013698,2]
[420028046,1775625040698,-500.0,0.00013698,2]
[420028047,1775625040712,-500.0,0.00013698,2]
[420028048,1775625040723,-467.66178343,0.00013698,2]
[420028049,1775625040734,-500.0,0.00013698,2]
[420028050,1775625040745,-500.0,0.00013698,2]
[420028051,1775625040756,-500.0,0.00013698,2]
[420028052,1775625040766,-500.0,0.00013698,2]
[420028053,1775625040776,-500.0,0.00013698,2]
[420028054,1775625040786,-500.0,0.00013698,2]
[420028055,1775625040798,-500.0,0.00013698,2]
[420028056,1775625040807,-500.0,0.00013698,2]
[420028057,1775625040818,-500.0,0.00013698,2]
[420028058,1775625040827,-500.0,0.00013698,2]
[420028059,1775625040838,-500.0,0.00013698,2]
[420028060,1775625040849,-500.0,0.00013698,2]
[420028061,1775625040859,-500.0,0.00013698,2]
[420028062,1775625040869,-500.0,0.00013698,2]
[420028063,1775625040880,-500.0,0.00013698,2]
[420028064,1775625040891,-500.14075642,0.00013698,2]
[420028065,1775625040902,-500.0,0.00013698,2]
[420028066,1775625040911,-248.76967055,0.00013698,2]
[420028067,1775625040921,-500.0,0.00013698,2]
[420028068,1775625040932,-500.0,0.00013698,2]
[420028069,1775625040941,-500.0,0.00013698,2]
[420028070,1775625040951,-500.0,0.00013698,2]
[420028071,1775625040961,-500.0,0.00013698,2]
[420028072,1775625040972,-500.0,0.00013698,2]
[420028073,1775625040982,-500.0,0.00013698,2]
[420028074,1775625040993,-500.0,0.00013698,2]
[420028075,1775625041003,-500.0,0.00013698,2]
[420028076,1775625041014,-500.0,0.00013698,2]
[420028077,1775625041024,-500.0,0.00013698,2]
[420028078,1775625041034,-500.0,0.00013698,2]
[420028079,1775625041045,-504.74596653,0.00013698,2]
[420028080,1775625041055,-500.0,0.00013698,2]
[420028081,1775625041065,-500.0,0.00013698,2]
[420028082,1775625041075,-500.0,0.00013698,2]
[420028083,1775625041086,-500.0,0.00013698,2]
[420028084,1775625041096,-500.0,0.00013698,2]
[420028085,1775625041107,-500.0,0.00013698,2]
[420028086,1775625041118,-500.0,0.00013698,2]